bitfinex-derivatives/quotes_ETHF0:USTF0_20250902
["timestamp","ask_amount","ask_price","bid_price","bid_amount"]
[1756848666566,3.9449,4313.4,4313.3,0.7315]
[1756848667067,3.9449,4313.4,4313.3,0.5309]
[1756848668466,3.9449,4313.4,4313.3,0.2162]
[1756848670167,3.9449,4313.4,4313.3,0.5309]
[1756848671375,0.7073,4312.9,4312.8,5.8343]
[1756848671575,0.7073,4312.9,4312.8,6.2789]
[1756848671874,0.4087,4312.9,4312.8,6.2789]
[1756848672570,3.2078,4313.4,4312.8,5.9815]
[1756848672766,0.7073,4313.4,4313.3,0.4095]
[1756848672972,0.7073,4313.4,4313.3,0.7069]
[1756848676177,2.0,4313.7,4313.3,0.7069]
[1756848676178,2.0,4313.7,4313.5,0.1186]
[1756848676374,2.0,4313.7,4313.6,0.9439]
[1756848676878,2.0,4313.7,4313.6,41.7439]
[1756848677784,3.2078,4314.4,4313.6,45.4465]
[1756848677978,3.2078,4315.0,4314.3,0.4095]
[1756848678279,3.9151,4315.0,4314.9,0.4993]
[1756848678479,4.54643529,4315.0,4314.4,0.237]
[1756848678682,3.9151,4315.0,4314.4,0.237]
[1756848679178,0.4087,4314.6,4314.5,0.4993]
[1756848679372,0.7073,4314.6,4314.5,0.4993]
[1756848680179,0.4087,4314.1,4314.0,0.2974]
[1756848680384,0.7073,4314.1,4314.0,0.7363]
[1756848680785,0.7073,4314.1,4314.0,0.9439]
[1756848689092,0.7073,4314.1,4314.0,0.237]
[1756848689485,0.7073,4314.1,4314.0,0.7363]
[1756848693099,0.7073,4314.1,4314.0,0.237]
[1756848693701,0.7073,4314.1,4314.0,0.7363]
[1756848694600,0.2986,4314.0,4313.8,0.237]
[1756848694807,0.7073,4313.9,4313.8,0.237]
[1756848696301,0.7073,4313.9,4313.8,0.5344]
[1756848697502,0.7073,4313.9,4313.8,0.237]
[1756848700407,1.33928204,4313.9,4313.8,0.237]
[1756848701906,1.04068204,4313.9,4313.6,1.99367125]
[1756848702111,0.3204,4313.8,4313.6,2.30927125]
[1756848702501,0.4231,4313.7,4313.6,2.51627125]
[1756848702701,0.7435,4313.7,4313.6,2.51627125]
[1756848706308,0.7435,4313.7,4313.6,2.73077125]
[1756848711916,3.9513,4313.7,4313.6,2.73077125]
[1756848712322,0.7435,4313.7,4313.6,2.73077125]
[1756848712510,3.9513,4313.7,4313.6,2.73077125]
[1756848716221,3.9513,4313.7,4313.6,2.96777125]
[1756848718632,4.5848057,4313.7,4313.6,1.99367125]
[1756848719827,4.8218057,4313.7,4313.6,1.99367125]
[1756848720931,4.8218057,4313.7,4313.6,2.30927125]
[1756848721528,4.5848057,4313.7,4312.9,0.3156]
[1756848721729,4.1883,4313.7,4312.8,0.237]
[1756848721921,0.3204,4313.5,4312.9,0.3156]
[1756848722118,0.7435,4313.5,4313.4,0.5226]
[1756848722320,1.61419966,4313.5,4313.4,0.5226]
[1756848722731,1.37719966,4313.5,4313.4,0.7371]
[1756848722931,1.05679966,4313.5,4313.4,0.7371]
[1756848723231,0.84819966,4313.5,4313.4,0.7371]
[1756848723731,1.16859966,4313.5,4313.4,0.7371]
[1756848724326,1.37719966,4313.5,4313.4,0.7371]
[1756848724525,1.37719966,4313.5,4312.5,0.1163]
[1756848724728,0.2145,4312.8,4312.7,0.7371]
[1756848724928,0.5349,4312.8,4312.7,0.7371]
[1756848725131,0.5349,4312.8,4312.7,0.9741]
[1756848726034,0.7435,4312.8,4312.7,0.5226]
[1756848728133,5.4223,4313.7,4313.6,0.4215]
[1756848728433,6.37648574,4313.7,4313.6,0.7371]
[1756848728627,6.58508574,4313.7,4313.6,0.7371]
[1756848731235,6.82208574,4313.7,4313.6,0.7371]
[1756848732735,6.82208574,4313.7,4313.6,0.207]
[1756848733326,6.58508574,4313.7,4313.6,0.207]
[1756848733531,6.82208574,4313.7,4313.6,0.207]
[1756848735340,6.82208574,4313.7,4313.4,0.3012]
[1756848735539,0.4263,4313.5,4313.4,0.5134]
[1756848735839,1.35878574,4313.5,4313.4,0.5134]
[1756848736937,1.35878574,4313.5,4312.7,0.236]
[1756848737129,0.725,4313.4,4313.3,0.7271]
[1756848737334,0.236,4313.6,4313.5,0.4259]
[1756848737541,0.87001108,4313.6,4313.5,0.7271]
[1756848738241,1.59501108,4313.6,4313.5,0.7271]
[1756848739043,1.59501108,4313.6,4313.5,0.5134]
[1756848740740,1.59501108,4313.6,4312.6,0.3012]
[1756848741047,1.35901108,4313.5,4313.4,0.7271]
[1756848742550,1.35901108,4313.5,4313.4,0.5134]
[1756848744047,0.2987,4313.4,4312.8,0.3012]
[1756848744248,0.725,4312.9,4312.8,0.7271]
[1756848747040,3.2078,4313.2,4312.8,0.7271]
[1756848747348,0.2131,4313.6,4313.5,0.7271]
[1756848747647,0.84773984,4313.6,4313.5,0.7271]
[1756848748439,0.63463984,4313.6,4313.5,0.7271]
[1756848748647,2.0,4313.7,4313.6,0.3012]
[1756848748846,2.63462338,4313.7,4313.6,0.7271]
[1756848750251,3.2078,4315.1,4315.0,0.7271]
[1756848750445,4.35341429,4315.1,4315.0,0.7271]
[1756848750645,3.4209,4315.1,4315.0,0.7271]
[1756848752554,3.9328,4315.1,4315.0,0.7271]
[1756848753151,3.6341,4315.1,4315.0,0.7271]
[1756848754252,3.9328,4315.1,4315.0,0.7271]
[1756848755251,3.6341,4315.1,4315.0,0.7271]
[1756848755455,3.4209,4315.1,4315.0,0.7271]
[1756848755856,3.2078,4315.1,4315.0,0.7271]
[1756848756653,3.2078,4315.1,4315.0,0.8547]
[1756848758749,0.236,4315.9,4315.0,0.5535]
[1756848758952,0.236,4315.9,4315.1,0.7271]
[1756848758953,0.2131,4315.2,4315.1,0.7271]
[1756848761361,0.2987,4315.4,4315.1,0.4259]
[1756848761559,0.2987,4315.4,4315.2,0.3034]
[1756848761764,0.5061,4315.4,4315.3,0.9425]
[1756848762064,0.7094,4315.4,4315.3,0.9425]
[1756848764659,0.7094,4315.4,4314.7,5.335]
[1756848764859,3.3275,4316.0,4314.8,0.236]
[1756848765064,0.7103,4314.9,4314.8,5.8455]
[1756848765264,0.7103,4314.9,4314.8,0.7465]
[1756848766468,0.7103,4314.9,4314.8,0.236]
[1756848766966,0.7103,4314.9,4314.8,0.9425]
[1756848767566,0.7103,4314.9,4314.8,1.23381297]
[1756848768269,0.507,4315.5,4315.4,0.4031]
[1756848768462,0.7103,4315.5,4315.4,0.4031]
[1756848768860,0.7103,4315.5,4315.4,0.7065]
[1756848769671,0.2996,4315.8,4315.4,0.4031]
[1756848769869,0.507,4315.8,4315.7,0.4031]
[1756848770070,0.507,4315.8,4315.7,0.7065]
[1756848770267,0.507,4315.8,4315.7,0.9425]
[1756848770876,0.7103,4315.8,4315.7,0.9425]
[1756848771574,0.236,4316.6,4316.2,0.3034]
[1756848771759,3.2078,4317.3,4315.8,0.2317]
[1756848771760,0.2074,4316.7,4316.6,0.4994]
[1756848771965,3.2078,4317.3,4316.6,0.93014591]
[1756848772161,0.7103,4317.2,4317.1,0.2071]
[1756848772470,0.7103,4317.2,4317.1,0.4431]
[1756848772674,0.2996,4317.2,4317.1,0.236]
[1756848772861,0.7103,4317.2,4317.1,0.236]
[1756848773061,0.4107,4317.2,4316.6,40.8]
[1756848773271,3.9181,4316.8,4316.7,0.236]
[1756848773466,0.7103,4316.8,4316.7,0.236]
[1756848773663,0.4107,4316.8,4316.7,0.2071]
[1756848773868,0.7103,4316.8,4316.7,0.4431]
[1756848774068,0.7103,4316.8,4316.7,0.236]
[1756848775473,0.7103,4316.8,4316.7,0.4431]
[1756848775871,0.2996,4316.7,4316.4,40.8]
[1756848776074,0.4107,4316.6,4316.5,0.52686989]
[1756848776279,0.7103,4316.6,4316.5,0.92996989]
[1756848779784,0.7103,4316.6,4316.5,1.23336989]
[1756848779968,0.7103,4316.6,4316.5,0.92996989]
[1756848780173,0.507,4316.6,4316.5,1.23336989]
[1756848780476,3.3275,4317.0,4316.9,0.7065]
[1756848780477,0.2074,4317.0,4316.9,0.7065]
[1756848780676,0.4107,4317.0,4316.9,1.23336989]
[1756848780876,0.7103,4317.0,4316.9,1.23336989]
[1756848781179,0.7103,4317.0,4316.9,0.92996989]
[1756848781381,0.507,4317.0,4316.9,1.23336989]
[1756848781579,0.7103,4317.0,4316.9,1.23336989]
[1756848782675,0.7103,4317.0,4316.9,0.69396989]
[1756848782873,0.7103,4317.0,4316.9,1.23395146]
[1756848785380,0.7103,4317.0,4316.9,0.93055146]
[1756848786177,0.7103,4317.0,4316.9,1.23395146]
[1756848788879,0.507,4317.0,4316.9,1.23395146]
[1756848789085,0.2996,4317.0,4316.9,1.23395146]
[1756848789485,3.2078,4317.8,4317.0,0.3034]
[1756848789687,0.2996,4317.7,4317.0,0.3034]
[1756848790588,0.507,4317.1,4317.0,0.7065]
[1756848790791,0.507,4317.1,4317.0,0.99807301]
[1756848794085,0.5212,4317.7,4317.6,0.4104]
[1756848794285,0.7345,4317.7,4317.6,0.9418]
[1756848797099,0.3064,4317.7,4317.6,1.23364346]
[1756848797797,0.3064,4317.7,4317.6,42.03364346]
[1756848798194,3.2078,4318.7,4317.7,0.2954]
[1756848798394,0.17,4318.9,4318.6,0.7058]
[1756848798592,0.17,4318.9,4318.7,1.23364346]
[1756848798793,0.17,4318.9,4318.8,0.99764346]
[1756848799000,0.3848,4318.9,4318.8,0.99764346]
[1756848799901,0.3848,4318.9,4318.8,1.01077419]
[1756848803304,0.17,4318.9,4318.8,1.01077419]
[1756848803501,0.17,4318.9,4318.8,4.21857419]
[1756848806305,0.17,4318.9,4318.8,1.01077419]
[1756848808604,0.17,4318.9,4318.8,4.45457419]
[1756848810409,0.5981,4318.9,4318.8,3.80817419]
[1756848810610,0.3848,4318.9,4318.8,4.45353022]
[1756848810807,0.17,4318.9,4318.8,4.45353022]
[1756848814414,0.7345,4320.1,4320.0,0.2057]
[1756848814616,0.96601001,4320.1,4320.0,0.5011]
[1756848814818,0.7345,4320.1,4320.0,0.5011]
[1756848815015,0.7345,4320.1,4320.0,0.7058]
[1756848816815,0.4281,4320.1,4319.4,0.2954]
[1756848817120,0.5212,4319.6,4319.5,1.24573088]
[1756848817817,0.2148,4319.6,4319.5,1.24573088]
[1756848818817,3.2078,4320.2,4319.5,0.95033088]
[1756848819019,3.6359,4320.2,4320.1,0.2057]
[1756848819218,3.6359,4320.2,4320.1,0.5011]
[1756848819719,3.9423,4320.2,4320.1,0.7058]
[1756848820313,3.9423,4320.2,4320.1,0.5011]
[1756848822416,3.9423,4320.2,4320.0,0.236]
[1756848823214,3.9423,4320.2,4320.1,0.30446299]
[1756848827819,3.9423,4320.2,4320.1,0.79806299]
[1756848828221,4.55960906,4320.2,4320.1,0.79806299]
[1756848828424,3.9423,4320.2,4320.1,0.79806299]
[1756848828923,3.9423,4320.2,4320.1,0.99256299]
[1756848831827,3.4226,4320.2,4320.1,0.99256299]
[1756848832025,3.7285,4320.2,4320.1,0.99256299]
[1756848832226,0.5207,4320.2,4320.1,0.99256299]
[1756848832528,0.7161,4320.2,4320.1,0.99256299]
[1756848832723,3.5137,4320.7,4320.4,0.3916]
[1756848832927,3.2078,4320.7,4320.6,0.6881]
[1756848833224,3.2078,4320.7,4320.6,0.99256299]
[1756848833615,0.3059,4321.1,4320.6,0.99256299]
[1756848833817,0.2113,4320.8,4320.7,0.99256299]
[1756848834120,0.5172,4320.8,4320.7,0.99256299]
[1756848837623,0.2113,4320.8,4320.7,0.99256299]
[1756848837824,0.5172,4320.8,4320.7,0.99256299]
[1756848838525,0.7126,4320.8,4320.7,1.22856299]
[1756848843322,0.7126,4320.8,4320.7,1.22029809]
[1756848844923,0.7126,4320.8,4320.7,0.29619809]
[1756848845128,0.7126,4320.8,4320.7,0.53119809]
[1756848849939,0.7126,4320.8,4320.7,0.29619809]
[1756848850135,0.7126,4320.8,4320.7,0.49329809]
[1756848850337,0.7126,4320.8,4320.7,0.78979809]
[1756848850633,0.7126,4320.8,4320.7,0.29619809]
[1756848851031,0.7126,4320.8,4320.7,0.78979809]
[1756848853041,3.9169,4321.8,4321.7,0.4104]
[1756848853240,3.9169,4321.8,4321.7,1.01909809]
[1756848854442,3.4133,4321.8,4321.7,1.01909809]
[1756848855843,3.7163,4321.8,4321.7,1.01909809]
[1756848856539,3.9169,4321.8,4321.7,1.01909809]
[1756848859438,3.4133,4321.8,4321.7,1.01909809]
[1756848859644,3.2078,4321.8,4321.7,1.01909809]
[1756848860344,3.2078,4321.8,4321.7,1.25409809]
[1756848863941,3.4133,4321.8,4321.7,1.25409809]
[1756848865652,3.2078,4321.8,4321.7,1.25409809]
[1756848866050,3.4133,4321.8,4321.7,1.25409809]
[1756848866251,3.7163,4321.8,4321.7,1.25409809]
[1756848866551,3.2078,4321.8,4321.7,1.25409809]
[1756848866744,0.303,4322.4,4322.3,0.4104]
[1756848866745,3.7163,4322.4,4322.3,0.4104]
[1756848866950,3.9169,4322.4,4322.3,0.29619809]
[1756848868152,3.9169,4322.4,4322.2,0.235]
[1756848872161,3.9169,4322.4,4322.3,0.7229]
[1756848872162,0.7091,4322.4,4322.3,0.7229]
[1756848872357,0.7091,4322.4,4322.3,1.01969979]
[1756848872752,0.2055,4322.4,4322.3,1.01969979]
[1756848873657,0.5085,4322.4,4322.3,1.01969979]
[1756848873856,0.2055,4323.8,4323.7,0.4104]
[1756848874154,3.2078,4324.9,4323.8,0.3125]
[1756848874457,0.2055,4324.0,4323.9,1.01936552]
[1756848874960,3.2078,4324.9,4323.9,0.70686552]
[1756848875149,0.2055,4324.0,4323.9,0.4104]
[1756848875449,3.2078,4324.9,4323.9,4.88821711]
[1756848875656,0.4061,4324.9,4324.8,0.7229]
[1756848875850,0.4061,4324.9,4324.8,0.4104]
[1756848876158,0.7091,4324.9,4324.8,0.7229]
[1756848876458,0.7091,4324.9,4324.8,1.02385168]
[1756848877952,0.5085,4325.4,4325.3,0.7229]
[1756848878149,0.7091,4325.4,4325.3,0.4104]
[1756848878351,0.7091,4325.4,4325.3,0.7549]
[1756848878547,0.7091,4325.4,4325.3,0.9579]
[1756848880157,0.4061,4325.4,4324.8,3.5203]
[1756848880362,0.7091,4325.0,4324.9,0.53508668]
[1756848880855,0.303,4325.0,4324.9,41.64758668]
[1756848881056,0.303,4325.9,4324.9,41.33508668]
[1756848881257,0.53419,4325.9,4325.1,0.2997]
[1756848881462,0.303,4325.9,4325.1,0.2997]
[1756848881960,0.1994,4325.2,4325.1,0.7065]
[1756848882162,0.4917,4325.2,4325.1,0.7065]
[1756848883064,0.2923,4325.1,4324.9,40.8]
[1756848883260,0.6889,4325.1,4325.0,0.235]
[1756848884553,0.6889,4325.1,4324.9,44.0078]
[1756848884759,0.4211,4325.0,4324.9,40.8]
[1756848884960,0.4211,4325.0,4324.9,41.035]
[1756848885267,0.8177,4325.0,4324.9,0.235]
[1756848887762,0.8177,4325.0,4324.5,44.0078]
[1756848888065,0.6889,4324.7,4324.6,0.53630389]
[1756848888264,0.6889,4324.7,4324.6,0.73600389]
[1756848889369,0.6889,4324.7,4324.6,1.24280389]
[1756848890061,0.6889,4324.7,4324.6,0.70810389]
[1756848890367,0.6889,4324.7,4324.6,0.53630389]
[1756848890863,0.6889,4324.7,4324.6,0.73600389]
[1756848891166,0.1288,4325.0,4324.6,0.73600389]
[1756848891167,0.2923,4326.7,4325.4,0.2997]
[1756848891464,0.2923,4326.9,4325.6,0.2997]
[1756848891667,0.2923,4326.8,4325.8,0.2997]
[1756848891868,0.23116,4326.9,4325.9,0.2997]
[1756848892060,0.23116,4326.9,4326.3,0.7065]
[1756848892061,0.70814562,4326.4,4326.3,0.7065]
[1756848892260,0.70814562,4326.4,4326.3,0.9415]
[1756848893164,0.72058002,4326.4,4326.3,0.9415]
[1756848893571,0.72058002,4326.4,4326.3,0.6418]
[1756848894370,0.72058002,4326.4,4326.3,0.9415]
[1756848896568,0.72058002,4326.4,4326.3,0.6418]
[1756848897064,0.72058002,4326.4,4326.3,0.9415]
[1756848897569,0.03168002,4326.4,4326.3,0.9415]
[1756848897774,0.03168002,4326.4,4326.3,1.24317093]
[1756848897973,0.03168002,4326.4,4326.3,8.45097093]
[1756848898767,0.03726065,4326.4,4326.3,8.45097093]
[1756848898962,3.5001,4327.0,4326.9,0.4068]
[1756848899175,0.6889,4327.0,4326.9,0.235]
[1756848899364,0.6889,4327.0,4326.9,0.54247477]
[1756848901366,0.6889,4327.0,4326.9,1.24897477]
[1756848901569,0.6889,4327.0,4326.9,4.45677477]
[1756848901963,0.6889,4327.0,4326.9,3.51527477]
[1756848902177,1.30473939,4327.0,4326.9,0.74217477]
[1756848902866,1.30473939,4327.0,4326.9,0.30747477]
[1756848903176,1.30473939,4327.0,4326.9,0.54247477]
[1756848903368,1.30473939,4327.0,4326.9,0.74217477]
[1756848904471,1.30473939,4327.0,4326.9,0.50717477]
[1756848907281,1.30473939,4327.0,4326.9,1.01397477]
[1756848907878,1.30473939,4327.0,4326.9,0.71427477]
[1756848908476,1.30473939,4327.0,4326.9,1.01397477]
[1756848908773,1.30473939,4327.0,4326.9,0.71427477]
[1756848909176,1.30473939,4327.0,4326.9,1.01397477]
[1756848909684,1.30473939,4327.0,4326.9,0.71427477]
[1756848909877,1.43353939,4327.0,4326.9,0.30747477]
[1756848910382,1.30473939,4327.0,4326.9,0.30747477]
[1756848910581,5.43353939,4327.0,4326.9,0.30747477]
[1756848911478,5.43353939,4327.0,4326.1,0.235]
[1756848911781,0.712,4326.2,4326.1,0.4357]
[1756848911970,0.712,4326.2,4326.1,0.7543]
[1756848912970,0.4166,4326.2,4325.8,41.1186]
[1756848913172,0.712,4325.9,4325.8,40.8]
[1756848913576,0.712,4325.9,4325.7,0.235]
[1756848913977,0.4166,4325.7,4325.6,0.235]
[1756848914284,0.712,4325.7,4325.6,0.4357]
[1756848914978,0.1205,4326.0,4325.1,3.2078]
[1756848914979,0.712,4325.2,4325.1,3.2078]
[1756848915181,0.712,4325.2,4324.7,0.235]
[1756848916785,0.1205,4325.5,4324.4,0.18006768]
[1756848916786,0.8325,4324.5,4324.4,0.18006768]
[1756848917086,0.8325,4324.5,4323.9,0.236]
[1756848917087,1.44968057,4324.5,4323.9,0.236]
[1756848917376,0.4166,4324.0,4323.9,0.236]
[1756848917580,0.712,4324.0,4323.9,0.236]
[1756848917776,0.712,4324.0,4323.5,41.1186]
[1756848917777,0.2954,4323.9,4323.5,0.236]
[1756848917978,0.712,4323.6,4323.5,0.236]
[1756848918179,0.712,4323.6,4323.2,44.0078]
[1756848918385,0.712,4323.6,4323.5,0.236]
[1756848918781,0.2954,4323.5,4323.2,44.0078]
[1756848919288,0.2954,4323.5,4323.4,30.753]
[1756848919478,0.2954,4323.8,4323.4,0.6503]
[1756848919680,0.1153,4324.2,4324.1,0.7329]
[1756848919681,0.6128,4324.2,4324.1,0.7329]
[1756848919980,0.6128,4324.2,4324.1,0.9689]
[1756848920585,0.1153,4324.2,4324.1,0.9689]
[1756848920786,0.6128,4324.2,4324.1,0.9689]
[1756848921085,0.8273,4324.2,4324.1,0.9689]
[1756848928288,0.1153,4324.2,4324.1,0.9689]
[1756848928888,0.6128,4324.2,4324.1,0.9689]
[1756848931482,0.8273,4324.2,4324.1,0.9689]
[1756848938292,0.1153,4324.2,4324.1,5.20016]
[1756848938693,0.1153,4324.2,4324.1,4.9689]
[1756848939994,0.1153,4324.2,4324.1,0.9689]
[1756848942989,0.3087,4324.6,4324.2,0.2967]
[1756848943190,0.5137,4324.6,4324.5,0.721]
[1756848943385,0.5137,4324.6,4324.5,0.957]
[1756848943791,2.88664302,4325.7,4324.5,0.7832]
[1756848943986,0.3202,4324.8,4324.7,0.721]
[1756848944295,0.3202,4324.8,4324.7,0.957]
[1756848946799,0.1152,4324.8,4324.7,0.957]
[1756848950900,0.3202,4324.8,4324.7,0.957]
[1756848951900,0.1152,4324.8,4324.7,0.957]
[1756848952101,0.3202,4324.8,4324.7,0.957]
[1756848956104,0.5195,4324.8,4324.7,0.721]
[1756848956405,0.5195,4324.8,4324.7,0.956]
[1756848958495,0.3202,4324.8,4324.7,0.956]
[1756848958699,0.1152,4324.8,4324.7,0.956]
[1756848961709,0.3202,4324.8,4324.7,0.721]
[1756848962316,0.1152,4324.8,4324.7,0.721]
[1756848965016,0.3202,4324.8,4324.7,0.956]
[1756848965218,0.1152,4324.8,4324.7,0.956]
[1756848966315,0.3202,4324.8,4324.7,0.956]
[1756848967112,0.5195,4324.8,4324.7,0.721]
[1756848967313,0.6664,4324.8,4324.7,0.721]
[1756848967519,0.1152,4324.8,4324.7,0.721]
[1756848968018,3.2078,4325.1,4324.7,0.4243]
[1756848968319,3.4128,4325.1,4325.0,0.8439]
[1756848968719,3.2078,4325.1,4325.0,0.8439]
[1756848968919,3.6121,4325.1,4325.0,0.721]
[1756848970120,4.23367876,4325.1,4325.0,0.721]
[1756848971021,4.23367876,4325.1,4325.0,0.5101]
[1756848971318,1.02587876,4325.1,4325.0,0.721]
[1756848972120,0.4043,4325.1,4325.0,0.721]
[1756848972521,1.02587207,4325.1,4325.0,0.8404]
[1756848973016,1.02587207,4325.1,4325.0,0.5101]
[1756848973411,1.02587207,4325.1,4325.0,0.7055]
[1756848978122,0.1486,4324.6,4323.9,0.3036]
[1756848978428,0.1985,4324.0,4323.9,0.7119]
[1756848979831,0.403,4324.0,4323.9,0.7119]
[1756848981030,0.5516,4324.0,4323.9,0.7119]
[1756848982329,0.5516,4324.0,4323.9,0.3036]
[1756848982829,0.5516,4324.0,4323.0,0.1194]
[1756848982830,4.63427,4324.0,4323.1,0.3036]
[1756848983035,0.5516,4323.9,4323.8,0.2129]
[1756848983230,0.403,4323.9,4323.8,0.5165]
[1756848984334,0.5516,4323.9,4323.8,0.5165]
[1756848985033,0.403,4323.9,4323.8,0.5165]
[1756848985434,0.403,4323.9,4323.8,0.7119]
[1756848986832,0.5516,4323.9,4323.8,0.5165]
[1756848987032,0.5516,4323.9,4323.8,0.3036]
[1756848991941,0.7866,4323.9,4323.8,0.3036]
[1756848999841,0.7866,4323.9,4323.8,0.5165]
[1756849002748,0.7866,4323.9,4323.8,0.3036]
[1756849004345,3.3231,4324.1,4323.8,0.7097]
[1756849004549,3.3231,4324.1,4324.0,0.838]
[1756849005450,3.2078,4324.1,4324.0,0.838]
[1756849007248,0.235,4324.2,4324.1,0.7146]
[1756849010048,0.3503,4324.3,4324.2,0.3085]
[1756849010249,0.3503,4324.3,4324.2,0.7146]
[1756849010751,0.1153,4324.3,4324.2,0.7146]
[1756849010957,0.3503,4324.3,4324.2,0.7146]
[1756849012049,0.5495,4324.3,4324.2,0.7146]
[1756849012252,1.17081812,4324.3,4324.2,0.7146]
[1756849014355,0.5495,4324.3,4324.2,0.7146]
[1756849019255,0.7523,4324.3,4324.2,0.7146]
[1756849020256,0.5495,4324.3,4324.2,0.7146]
[1756849021551,0.1153,4324.3,4324.2,0.7146]
[1756849021757,0.3503,4324.3,4324.2,0.7146]
[1756849022758,0.7523,4324.3,4324.2,0.7146]
[1756849023351,0.9003,4324.3,4324.2,0.7146]
[1756849023552,0.7523,4324.3,4324.2,0.7146]
[1756849024558,0.785,4324.3,4324.2,0.7146]
[1756849024856,0.637,4324.3,4324.2,0.7146]
[1756849025857,1.25772036,4324.3,4324.2,0.7146]
[1756849031763,1.25772036,4324.3,4324.2,0.5186]
[1756849031764,1.40532036,4324.3,4324.2,0.5186]
[1756849032657,1.25772036,4324.3,4324.2,0.5186]
[1756849034051,1.25772036,4324.3,4324.2,0.7226]
[1756849035659,1.40532036,4324.3,4324.2,0.7226]
[1756849035964,1.40532036,4324.3,4324.2,0.3085]
[1756849036159,1.40532036,4324.3,4324.2,0.5102]
[1756849038058,1.25772036,4324.3,4324.2,0.5102]
[1756849038870,4.46552036,4324.3,4324.2,0.5102]
[1756849040272,4.61312036,4324.3,4324.2,0.5102]
[1756849040571,4.46552036,4324.3,4324.2,0.5102]
[1756849041161,3.82852036,4324.3,4324.2,0.7142]
[1756849043478,4.26362036,4324.3,4324.2,0.7142]
[1756849044976,1.05582036,4324.3,4324.2,0.7142]
[1756849047482,1.25532036,4324.3,4324.2,0.7142]
[1756849051486,1.02032036,4324.3,4324.2,0.7142]
[1756849051686,1.25532036,4324.3,4324.2,0.7142]
[1756849054686,1.02032036,4324.3,4324.2,0.7142]
[1756849054886,1.25532036,4324.3,4324.2,0.7142]
[1756849055585,1.02032036,4324.3,4324.2,0.7142]
[1756849055885,1.25532036,4324.3,4324.2,0.7142]
[1756849059689,1.02032036,4324.3,4324.2,0.7142]
[1756849059876,1.25532036,4324.3,4324.2,0.7142]
[1756849060084,0.62072036,4324.3,4324.2,0.7142]
[1756849060277,3.2078,4324.4,4324.2,0.4057]
[1756849060477,3.4428,4324.4,4324.3,0.2987]
[1756849060683,4.06400412,4324.4,4324.3,0.7044]
[1756849061187,3.82900412,4324.4,4324.3,0.7044]
[1756849063394,0.62120412,4324.4,4324.3,0.7044]
[1756849064394,0.1152,4324.6,4324.5,0.1286]
[1756849064692,0.1152,4324.6,4324.5,0.8305]
[1756849065090,0.3286,4324.6,4324.5,0.8305]
[1756849065588,0.1152,4324.6,4324.5,0.8305]
[1756849066998,0.3286,4324.6,4324.5,0.8305]
[1756849071908,0.1152,4324.6,4324.5,0.8305]
[1756849072400,0.3286,4324.6,4324.5,0.8305]
[1756849074007,0.2134,4324.6,4324.5,0.8305]
[1756849077701,0.1152,4324.8,4324.5,0.8305]
[1756849077908,0.62081372,4324.7,4324.6,0.7019]
[1756849079310,0.1152,4324.8,4324.6,0.7019]
[1756849079612,0.1152,4324.8,4324.7,0.7019]
[1756849079811,0.73600826,4324.8,4324.7,0.7019]
[1756849080413,0.1152,4324.8,4324.7,4.93313]
[1756849081113,3.2078,4325.5,4325.4,0.3964]
[1756849081408,3.2078,4326.0,4325.9,0.7019]
[1756849081719,3.2078,4326.0,4325.9,0.8979]
[1756849082009,3.24626291,4327.7,4326.4,0.7019]
[1756849082010,3.2078,4326.5,4326.4,0.7019]
[1756849082314,3.2078,4326.5,4326.4,0.9369]
[1756849082514,3.2078,4327.0,4326.9,0.7019]
[1756849083013,3.2078,4327.0,4326.9,0.9369]
[1756849083309,0.5243,4327.0,4326.9,0.9369]
[1756849083509,0.726,4327.0,4326.9,0.3964]
[1756849083918,0.8452,4327.0,4326.3,0.3055]
[1756849088003,0.726,4327.0,4326.3,0.3055]
[1756849088915,0.726,4327.0,4326.9,0.1956]
[1756849089417,0.726,4327.0,4326.9,0.7019]
[1756849090514,0.3109,4327.5,4327.0,0.3055]
[1756849090713,0.5243,4327.1,4327.0,0.7019]
[1756849090912,0.726,4327.1,4327.0,0.7019]
[1756849091309,2.0,4327.7,4327.4,0.4048]
[1756849091310,0.204,4327.5,4327.4,0.4048]
[1756849091611,0.4951,4327.5,4327.4,0.4048]
[1756849091809,0.2911,4327.6,4327.4,0.4048]
[1756849092014,0.4951,4327.6,4327.5,0.7245]
[1756849093021,2.0,4327.7,4327.6,0.3197]
[1756849093419,2.0,4327.7,4327.6,0.7245]
[1756849093719,2.4951,4327.7,4327.6,0.7245]
[1756849094322,2.7012,4327.7,4327.6,0.2073]
[1756849094516,2.7012,4327.7,4327.6,0.7245]
[1756849095015,2.7012,4327.7,4327.6,0.4048]
[1756849095515,2.4101,4327.7,4327.3,3.2078]
[1756849095717,0.7012,4327.4,4327.3,3.4418]
[1756849095917,0.7012,4327.4,4327.3,3.4151]
[1756849096217,0.7012,4327.4,4327.3,0.2073]
[1756849096619,0.4101,4327.4,4327.0,0.5537]
[1756849096921,0.7012,4327.1,4327.0,0.9585]
[1756849097514,2.0,4327.7,4327.0,0.9585]
[1756849097715,2.7012,4327.7,4327.6,0.4048]
[1756849097914,2.7012,4327.7,4327.6,0.7245]
[1756849101120,2.0,4327.7,4327.4,3.2078]
[1756849101418,0.7012,4327.5,4327.4,3.2078]
[1756849101623,0.7012,4327.5,4327.4,3.4151]
[1756849101815,0.7012,4327.5,4327.4,3.7348]
[1756849102020,0.7012,4327.5,4327.4,3.9323]